fUSD/lending_fUSD_20260516
["ID","MTS","AMOUNT","RATE_DAILY","PERIOD"]
[422400057,1778935872000,-163.87610066,0.00031751,7]
[422400064,1778935872000,-159.8992,0.00031751,7]
[422400061,1778935872000,-159.8992,0.00031751,7]
[422400060,1778935872000,-159.8992,0.00031751,7]
[422400062,1778935872000,-159.8992,0.00031751,7]
[422400063,1778935872000,-159.8992,0.00031751,7]
[422400058,1778935872000,-159.8992,0.00031751,7]
[422400056,1778935872000,-169.59004861,0.00031751,7]
[422400053,1778935872000,-314.33502197,0.00031751,7]
[422400055,1778935872000,-167.37314599,0.00031751,7]
[422400066,1778935872000,-165.65730792,0.00031751,7]
[422400068,1778935872000,-162.75804584,0.00031751,7]
[422400065,1778935872000,-159.8992,0.00031751,7]
[422400067,1778935872000,-165.84567073,0.00031751,7]
[422400071,1778935872000,-689.10445798,0.00031751,7]
[422400070,1778935872000,-164.40747918,0.00031751,7]
[422400073,1778935872000,-169.8929,0.00031751,7]
[422400072,1778935872000,-163.4839431,0.00031751,7]
[422400069,1778935872000,-172.48508102,0.00031751,7]
[422400074,1778935872000,-159.8992,0.00031751,7]
[422400075,1778935872000,-159.8992,0.00031751,7]
[422400025,1778935872000,-1918.0,0.00031494,30]
[422400046,1778935872000,-168.28921589,0.00031751,7]
[422400049,1778935872000,-212.07219548,0.00031751,7]
[422399985,1778935872000,-414.67347574,0.00031268,7]
[422400041,1778935872000,-500.0,0.00031726,120]
[422400020,1778935872000,-318.0,0.00031488,120]
[422400042,1778935872000,-159.8992,0.00031751,7]
[422400019,1778935872000,-249.0,0.00031488,30]
[422400018,1778935872000,-1044.0,0.00031488,30]
[422400021,1778935872000,-2501.0,0.00031494,30]
[422400017,1778935872000,-5000.0,0.00031449,10]
[422400022,1778935872000,-1314.0,0.00031494,30]
[422400023,1778935872000,-1043.0,0.00031494,30]
[422400026,1778935872000,-340.0,0.00031494,30]
[422400032,1778935872000,-1000.0,0.00031507,30]
[422400028,1778935872000,-150.0,0.000315,2]
[422400029,1778935872000,-300.98575584,0.000315,2]
[422400036,1778935872000,-1027.0,0.00031555,120]
[422400027,1778935872000,-200.46090113,0.000315,2]
[422400016,1778935872000,-20171.67482259,0.0003143,4]
[422400038,1778935872000,-152.0,0.0003166,31]
[422400044,1778935872000,-170.23673501,0.00031751,7]
[422400030,1778935872000,-1000.0,0.000315,7]
[422400043,1778935872000,-159.8992,0.00031751,7]
[422400050,1778935872000,-165.0086607,0.00031751,7]
[422400047,1778935872000,-410.15599212,0.00031751,7]
[422400040,1778935872000,-150.0,0.00031716,2]
[422400045,1778935872000,-161.00615176,0.00031751,7]
[422400037,1778935872000,-302.0,0.00031606,120]
[422400033,1778935872000,-150.0,0.00031507,30]
[422400031,1778935872000,-178.0,0.00031506,120]
[422400034,1778935872000,-258.0,0.00031507,30]
[422400035,1778935872000,-152.06229366,0.00031507,30]
[422400051,1778935872000,-383.23930694,0.00031751,7]
[422400101,1778935873000,-182.90570145,0.00032,120]
[422400106,1778935873000,-3250.47,0.00032,7]
[422400105,1778935873000,-1256.55167276,0.00032,120]
[422400103,1778935873000,-180.8822545,0.00032,120]
[422400104,1778935873000,-613.63117218,0.00032,120]
[422400102,1778935873000,-1296.58145655,0.00032,120]
[422400107,1778935873000,-303.82140309,0.00032,120]
[422400112,1778935873000,-200.0,0.00032055,2]
[422400110,1778935873000,-700.0,0.00032,2]
[422400125,1778935873000,-457.47374946,0.00032191,7]
[422400111,1778935873000,-173.65720979,0.00032,120]
[422400109,1778935873000,-150.0,0.00032,120]
[422400124,1778935873000,-650.62959833,0.00032191,7]
[422400114,1778935873000,-250.0,0.00032096,30]
[422400113,1778935873000,-250.0,0.00032096,30]
[422400119,1778935873000,-5000.0,0.00032167,2]
[422400117,1778935873000,-6503.90587747,0.00032167,2]
[422400115,1778935873000,-183.0,0.00032096,30]
[422400094,1778935873000,-287.25397231,0.00032,5]
[422400108,1778935873000,-185.3550075,0.00032,120]
[422400100,1778935873000,-223.86422804,0.00032,120]
[422400084,1778935873000,-831.0,0.00031943,7]
[422400098,1778935873000,-284.99896352,0.00032,120]
[422400076,1778935873000,-161.34086537,0.00031751,7]
[422400077,1778935873000,-341.62602362,0.00031751,7]
[422400081,1778935873000,-164.58121659,0.00031751,7]
[422400079,1778935873000,-345.53828535,0.00031751,7]
[422400082,1778935873000,-339.54636704,0.00031751,7]
[422400083,1778935873000,-168.39933371,0.00031751,7]
[422400080,1778935873000,-212.35017214,0.00031751,7]
[422400078,1778935873000,-499.34175859,0.00031751,7]
[422400085,1778935873000,-719.04747942,0.00031954,2]
[422400099,1778935873000,-221.6985354,0.00032,120]
[422400088,1778935873000,-500.0,0.00031975,23]
[422400087,1778935873000,-152.06229366,0.00031963,30]
[422400090,1778935873000,-231.41019972,0.00031997,7]
[422400097,1778935873000,-1799.22046513,0.00032,120]
[422400092,1778935873000,-177.48253576,0.00032,120]
[422400095,1778935873000,-726.12708633,0.00032,120]
[422400093,1778935873000,-162.08,0.00032,120]
[422400096,1778935873000,-199.9448596,0.00032,120]
[422400089,1778935873000,-152.0,0.00031975,32]
[422400091,1778935873000,-1760.2559293,0.00032,2]
[422400086,1778935873000,-896.77747135,0.00031954,2]
[422400122,1778935873000,-543.23516296,0.00032191,7]
[422400120,1778935873000,-5000.0,0.00032167,2]
[422400121,1778935873000,-5000.0,0.00032167,2]
[422400150,1778935873000,-611.70574863,0.00032191,2]
[422400149,1778935873000,-514.57359376,0.00032191,7]
[422400156,1778935873000,-601.55962735,0.00032191,7]
[422400158,1778935873000,-372.36304463,0.00032191,7]
[422400157,1778935873000,-506.57183579,0.00032191,7]
[422400152,1778935873000,-539.10633756,0.00032191,7]
[422400151,1778935873000,-455.00257432,0.00032191,7]
[422400154,1778935873000,-460.20117519,0.00032191,7]
[422400153,1778935873000,-584.15685089,0.00032191,7]
[422400155,1778935873000,-478.94752794,0.00032191,7]
[422400160,1778935873000,-1199.22340233,0.00032191,7]
[422400159,1778935873000,-446.31259623,0.00032191,2]
[422400162,1778935873000,-606.49376288,0.00032191,7]
[422400118,1778935873000,-5000.0,0.00032167,2]
[422400163,1778935873000,-939.70276209,0.00032191,7]
[422400164,1778935873000,-466.83999606,0.00032191,5]
[422400166,1778935873000,-363.30618623,0.00032191,7]
[422400167,1778935873000,-1488.6673072,0.00032191,7]
[422400165,1778935873000,-374.25947798,0.00032191,7]
[422400146,1778935873000,-542.3543922,0.00032191,7]
[422400148,1778935873000,-491.22110857,0.00032191,7]
[422400161,1778935873000,-622.01021361,0.00032191,7]
[422400144,1778935873000,-475.7868787,0.00032191,7]
[422400147,1778935873000,-493.510002,0.00032191,7]
[422400116,1778935873000,-308.33601727,0.00032153,7]
[422400123,1778935873000,-610.38526344,0.00032191,7]
[422400129,1778935873000,-447.55096579,0.00032191,7]
[422400136,1778935873000,-541.40615887,0.00032191,7]
[422400137,1778935873000,-629.78366771,0.00032191,7]
[422400131,1778935873000,-495.45404042,0.00032191,7]
[422400128,1778935873000,-313.19264607,0.00032191,7]
[422400133,1778935873000,-619.51110203,0.00032191,7]
[422400134,1778935873000,-513.97219098,0.00032191,7]
[422400127,1778935873000,-505.93199881,0.00032191,7]
[422400132,1778935873000,-304.07530201,0.00032191,7]
[422400126,1778935873000,-531.90000709,0.00032191,7]
[422400130,1778935873000,-453.11914743,0.00032191,7]
[422400139,1778935873000,-480.25269251,0.00032191,7]
[422400140,1778935873000,-516.29756591,0.00032191,7]
[422400142,1778935873000,-469.58749624,0.00032191,7]
[422400141,1778935873000,-472.92859824,0.00032191,7]
[422400138,1778935873000,-550.29639051,0.00032191,7]
[422400145,1778935873000,-491.05286895,0.00032191,7]
[422400135,1778935873000,-668.68662786,0.00032191,7]
[422400143,1778935873000,-512.03943257,0.00032191,7]
[422400267,1778935874000,-723.1391896,0.00032806,7]
[422400266,1778935874000,-654.7371586,0.00032806,7]
[422400265,1778935874000,-634.38250493,0.00032806,7]
[422400258,1778935874000,-470.68285912,0.00032806,7]
[422400259,1778935874000,-640.33692334,0.00032806,7]
[422400257,1778935874000,-455.86701771,0.00032806,7]
[422400263,1778935874000,-626.11666166,0.00032806,7]
[422400262,1778935874000,-494.7389126,0.00032806,7]
[422400268,1778935874000,-658.01333601,0.00032806,7]
[422400260,1778935874000,-688.39675454,0.00032806,7]
[422400256,1778935874000,-733.72852068,0.00032806,7]
[422400255,1778935874000,-839.71155695,0.00032806,7]
[422400261,1778935874000,-630.57146433,0.00032806,7]
[422400269,1778935874000,-654.96147809,0.00032806,7]
[422400272,1778935874000,-606.67009909,0.00032806,7]
[422400275,1778935874000,-778.87580119,0.00032806,7]
[422400270,1778935874000,-686.09812502,0.00032806,7]
[422400274,1778935874000,-464.42179169,0.00032806,7]
[422400273,1778935874000,-718.80845008,0.00032806,7]
[422400277,1778935874000,-487.39403428,0.00032806,7]
[422400276,1778935874000,-638.59670393,0.00032806,7]
[422400280,1778935874000,-675.42911439,0.00032806,7]
[422400279,1778935874000,-802.07950313,0.00032806,7]
[422400278,1778935874000,-613.60156692,0.00032806,7]
[422400282,1778935874000,-1598.96453644,0.00032806,7]
[422400284,1778935874000,-813.84701793,0.00032806,7]
[422400281,1778935874000,-558.54456695,0.00032806,7]
[422400285,1778935874000,-829.34695147,0.00032806,7]
[422400264,1778935874000,-682.71924343,0.00032806,7]
[422400271,1778935874000,-815.60766484,0.00032806,2]
[422400283,1778935874000,-669.46889435,0.00032806,2]
[422400254,1778935874000,-721.87487849,0.00032806,7]
[422400250,1778935874000,-456.11295301,0.00032806,7]
[422400185,1778935874000,-160.0,0.000322,12]
[422400183,1778935874000,-836.10663578,0.00032191,7]
[422400187,1778935874000,-160.0,0.000322,12]
[422400192,1778935874000,-159.8992,0.00032221,7]
[422400188,1778935874000,-160.0,0.000322,12]
[422400204,1778935874000,-1029.0,0.00032259,30]
[422400205,1778935874000,-152.0,0.0003229,33]
[422400196,1778935874000,-366.99796987,0.00032222,30]
[422400194,1778935874000,-159.8992,0.00032222,7]
[422400201,1778935874000,-2452.0,0.00032259,30]
[422400200,1778935874000,-724.0,0.00032259,30]
[422400198,1778935874000,-159.8992,0.00032222,7]
[422400195,1778935874000,-366.99796987,0.00032222,30]
[422400199,1778935874000,-159.8992,0.00032243,7]
[422400202,1778935874000,-3684.0,0.00032259,30]
[422400197,1778935874000,-159.8992,0.00032222,7]
[422400207,1778935874000,-1342.38321,0.000323,120]
[422400217,1778935874000,-831.0,0.00032477,7]
[422400203,1778935874000,-983.0,0.00032259,30]
[422400206,1778935874000,-908.44583239,0.000323,2]
[422400193,1778935874000,-326.10016034,0.00032221,7]
[422400186,1778935874000,-160.0,0.000322,12]
[422400251,1778935874000,-826.01480271,0.00032806,7]
[422400168,1778935874000,-463.57856839,0.00032191,7]
[422400169,1778935874000,-575.049645,0.00032191,7]
[422400171,1778935874000,-644.21177611,0.00032191,7]
[422400172,1778935874000,-568.35000048,0.00032191,7]
[422400175,1778935874000,-486.66189209,0.00032191,7]
[422400177,1778935874000,-305.46105621,0.00032191,7]
[422400170,1778935874000,-593.09887134,0.00032191,7]
[422400189,1778935874000,-160.0,0.000322,12]
[422400178,1778935874000,-520.51456432,0.00032191,7]
[422400180,1778935874000,-310.2013237,0.00032191,2]
[422400182,1778935874000,-525.91261696,0.00032191,5]
[422400174,1778935874000,-460.68181283,0.00032191,7]
[422400176,1778935874000,-351.87533215,0.00032191,2]
[422400179,1778935874000,-534.30592174,0.00032191,7]
[422400184,1778935874000,-302.52492015,0.00032191,7]
[422400191,1778935874000,-159.8992,0.0003222,7]
[422400190,1778935874000,-2754.1,0.0003221,5]
[422400181,1778935874000,-479.28107421,0.00032191,7]
[422400218,1778935874000,-5000.0,0.00032488,10]
[422400173,1778935874000,-1493.04048863,0.00032191,7]
[422400210,1778935874000,-2097.28,0.000324,20]
[422400233,1778935874000,-353.44634874,0.00032768,7]
[422400234,1778935874000,-462.50402591,0.00032768,7]
[422400236,1778935874000,-250.0,0.0003279,7]
[422400238,1778935874000,-4909.25193428,0.000328,2]
[422400235,1778935874000,-503.0,0.00032784,120]
[422400237,1778935874000,-250.0,0.0003279,7]
[422400239,1778935874000,-289.25,0.000328,20]
[422400240,1778935874000,-724.31355061,0.00032806,7]
[422400232,1778935874000,-500.0,0.00032686,120]
[422400244,1778935874000,-674.57599841,0.00032806,7]
[422400245,1778935874000,-469.7889691,0.00032806,7]
[422400247,1778935874000,-604.15886324,0.00032806,7]
[422400243,1778935874000,-609.96499928,0.00032806,7]
[422400246,1778935874000,-671.32644869,0.00032806,7]
[422400248,1778935874000,-660.60538722,0.00032806,7]
[422400253,1778935874000,-891.58217047,0.00032806,7]
[422400249,1778935874000,-421.7144771,0.00032806,7]
[422400208,1778935874000,-861.38057248,0.00032358,7]
[422400242,1778935874000,-709.20000945,0.00032806,7]
[422400230,1778935874000,-353.0891142,0.00032603,7]
[422400252,1778935874000,-685.29625464,0.00032806,7]
[422400231,1778935874000,-152.0,0.00032606,34]
[422400209,1778935874000,-162.0,0.00032368,3]
[422400241,1778935874000,-867.5061311,0.00032806,7]
[422400214,1778935874000,-5000.0,0.00032467,2]
[422400213,1778935874000,-5000.0,0.00032467,2]
[422400212,1778935874000,-152.06229366,0.0003242,30]
[422400215,1778935874000,-5000.0,0.00032467,2]
[422400216,1778935874000,-5000.0,0.00032467,2]
[422400220,1778935874000,-249.0,0.00032488,30]
[422400225,1778935874000,-594.0,0.00032494,30]
[422400211,1778935874000,-2097.28,0.000324,10]
[422400226,1778935874000,-1918.0,0.00032494,30]
[422400219,1778935874000,-1044.0,0.00032488,30]
[422400228,1778935874000,-1000.0,0.000325,2]
[422400224,1778935874000,-1043.0,0.00032494,30]
[422400227,1778935874000,-340.0,0.00032494,30]
[422400229,1778935874000,-150.0,0.00032562,2]
[422400221,1778935874000,-500.0,0.00032493,120]
[422400222,1778935874000,-2501.0,0.00032494,30]
[422400223,1778935874000,-1314.0,0.00032494,30]
[422400328,1778935875000,-303.600778,0.00032877,7]
[422400337,1778935875000,-303.600778,0.00032877,7]
[422400326,1778935875000,-303.600778,0.00032877,7]
[422400336,1778935875000,-303.600778,0.00032877,7]
[422400324,1778935875000,-303.600778,0.00032877,7]
[422400322,1778935875000,-151.0,0.00032877,7]
[422400314,1778935875000,-484.90314139,0.00032806,7]
[422400321,1778935875000,-151.0,0.00032877,7]
[422400325,1778935875000,-303.600778,0.00032877,7]
[422400319,1778935875000,-404.29125668,0.0003287,120]
[422400320,1778935875000,-1002.05,0.00032877,2]
[422400323,1778935875000,-160.729988,0.00032877,7]
[422400329,1778935875000,-303.600778,0.00032877,7]
[422400342,1778935875000,-303.600778,0.00032877,7]
[422400331,1778935875000,-303.600778,0.00032877,7]
[422400334,1778935875000,-303.600778,0.00032877,7]
[422400335,1778935875000,-303.600778,0.00032877,7]
[422400333,1778935875000,-303.600778,0.00032877,7]
[422400332,1778935875000,-303.600778,0.00032877,7]
[422400330,1778935875000,-303.600778,0.00032877,7]
[422400338,1778935875000,-303.600778,0.00032877,7]
[422400341,1778935875000,-303.600778,0.00032877,7]
[422400340,1778935875000,-303.600778,0.00032877,7]
[422400349,1778935875000,-151.0,0.00032877,7]
[422400345,1778935875000,-151.0,0.00032877,7]
[422400318,1778935875000,-347.79382351,0.00032807,7]
[422400346,1778935875000,-151.0,0.00032877,7]
[422400327,1778935875000,-303.600778,0.00032877,7]
[422400317,1778935875000,-328.78916514,0.00032806,7]
[422400290,1778935875000,-563.07342018,0.00032806,7]
[422400315,1778935875000,-1114.80884771,0.00032806,7]
[422400339,1778935875000,-303.600778,0.00032877,7]
[422400287,1778935875000,-1252.93701611,0.00032806,7]
[422400288,1778935875000,-808.65835051,0.00032806,7]
[422400286,1778935875000,-568.95704917,0.00032806,7]
[422400289,1778935875000,-700.2599941,0.00032806,5]
[422400293,1778935875000,-544.95927935,0.00032806,7]
[422400291,1778935875000,-535.53571755,0.00032806,7]
[422400292,1778935875000,-561.38921697,0.00032806,7]
[422400294,1778935875000,-1984.88974293,0.00032806,7]
[422400295,1778935875000,-695.36785258,0.00032806,7]
[422400296,1778935875000,-462.24820431,0.00032806,7]
[422400300,1778935875000,-757.80000064,0.00032806,7]
[422400297,1778935875000,-766.73286,0.00032806,7]
[422400316,1778935875000,-453.78738023,0.00032806,7]
[422400298,1778935875000,-790.79849512,0.00032806,7]
[422400302,1778935875000,-691.02271924,0.00032806,7]
[422400312,1778935875000,-595.37099871,0.00032806,7]
[422400304,1778935875000,-648.88252278,0.00032806,7]
[422400306,1778935875000,-458.19158431,0.00032806,7]
[422400303,1778935875000,-475.19704913,0.00032806,7]
[422400308,1778935875000,-694.0194191,0.00032806,7]
[422400301,1778935875000,-1990.7206515,0.00032806,7]
[422400307,1778935875000,-440.97141352,0.00032806,7]
[422400305,1778935875000,-527.81299823,0.00032806,2]
[422400311,1778935875000,-639.04143229,0.00032806,7]
[422400309,1778935875000,-712.40789566,0.00032806,7]
[422400310,1778935875000,-465.30198556,0.00032806,2]
[422400313,1778935875000,-701.21682261,0.00032806,5]
[422400299,1778935875000,-858.94903482,0.00032806,7]
[422400347,1778935875000,-151.0,0.00032877,7]
[422400358,1778935875000,-422.0,0.00032877,120]
[422400343,1778935875000,-303.600768,0.00032877,7]
[422400382,1778935875000,-271.0,0.00032877,30]
[422400385,1778935875000,-500.0,0.00032877,2]
[422400380,1778935875000,-150.0,0.00032877,30]
[422400381,1778935875000,-150.0,0.00032877,30]
[422400383,1778935875000,-500.0,0.00032877,2]
[422400384,1778935875000,-500.0,0.00032877,2]
[422400387,1778935875000,-500.0,0.00032877,2]
[422400388,1778935875000,-414.78489166,0.00032877,2]
[422400390,1778935875000,-172.33,0.00032877,60]
[422400399,1778935875000,-500.0,0.00032934,25]
[422400389,1778935875000,-500.0,0.00032877,2]
[422400398,1778935875000,-152.0,0.00032921,35]
[422400391,1778935875000,-152.06229366,0.00032877,30]
[422400379,1778935875000,-150.0,0.00032877,30]
[422400392,1778935875000,-9822.37708069,0.00032877,120]
[422400394,1778935875000,-500.0,0.00032877,10]
[422400393,1778935875000,-500.0,0.00032877,10]
[422400395,1778935875000,-183.85085684,0.00032877,10]
[422400397,1778935875000,-152.80287644,0.000329,120]
[422400401,1778935875000,-52153.78750436,0.00033,2]
[422400404,1778935875000,-5193.78899413,0.00033,2]
[422400402,1778935875000,-601.02425971,0.00033,7]
[422400400,1778935875000,-46626.10418927,0.00033,5]
[422400403,1778935875000,-37974.02099631,0.00033,3]
[422400405,1778935875000,-175.9192844,0.00033,60]
[422400408,1778935875000,-726.12708633,0.00033,120]
[422400406,1778935875000,-927.69375643,0.00033,30]
[422400344,1778935875000,-703.63,0.00032877,2]
[422400396,1778935875000,-293.66,0.000329,120]
[422400378,1778935875000,-150.0,0.00032877,30]
[422400407,1778935875000,-477.61644499,0.00033,30]
[422400375,1778935875000,-150.0,0.00032877,30]
[422400377,1778935875000,-150.0,0.00032877,30]
[422400351,1778935875000,-151.0,0.00032877,7]
[422400350,1778935875000,-151.0,0.00032877,7]
[422400352,1778935875000,-151.0,0.00032877,7]
[422400353,1778935875000,-151.0,0.00032877,7]
[422400354,1778935875000,-151.0,0.00032877,7]
[422400355,1778935875000,-151.0,0.00032877,7]
[422400356,1778935875000,-221.389814,0.00032877,7]
[422400361,1778935875000,-500.0,0.00032877,30]
[422400360,1778935875000,-500.0,0.00032877,30]
[422400357,1778935875000,-349.99,0.00032877,2]
[422400359,1778935875000,-500.0,0.00032877,30]
[422400364,1778935875000,-150.0,0.00032877,30]
[422400348,1778935875000,-151.0,0.00032877,7]
[422400365,1778935875000,-150.0,0.00032877,30]
[422400362,1778935875000,-519.0,0.00032877,30]
[422400376,1778935875000,-150.0,0.00032877,30]
[422400373,1778935875000,-150.0,0.00032877,30]
[422400374,1778935875000,-150.0,0.00032877,30]
[422400372,1778935875000,-150.0,0.00032877,30]
[422400370,1778935875000,-150.0,0.00032877,30]
[422400369,1778935875000,-150.0,0.00032877,30]
[422400368,1778935875000,-150.0,0.00032877,30]
[422400363,1778935875000,-150.0,0.00032877,30]
[422400386,1778935875000,-500.0,0.00032877,2]
[422400367,1778935875000,-150.0,0.00032877,30]
[422400366,1778935875000,-150.0,0.00032877,30]
[422400371,1778935875000,-150.0,0.00032877,30]
[422400452,1778935876000,-1049.63944619,0.00033421,7]
[422400451,1778935876000,-856.6203183,0.00033421,7]
[422400443,1778935876000,-360.94,0.000333,120]
[422400450,1778935876000,-1032.51850339,0.00033421,7]
[422400445,1778935876000,-40416.0,0.00033384,30]
[422400448,1778935876000,-843.21999801,0.00033421,7]
[422400441,1778935876000,-1029.0,0.00033259,30]
[422400442,1778935876000,-1033.65668697,0.0003327,7]
[422400446,1778935876000,-1017.30877241,0.00033421,7]
[422400449,1778935876000,-825.75673403,0.00033421,7]
[422400444,1778935876000,-150.0,0.00033302,2]
[422400447,1778935876000,-886.50001181,0.00033421,7]
[422400454,1778935876000,-917.16065085,0.00033421,7]
[422400461,1778935876000,-818.42144825,0.00033421,7]
[422400455,1778935876000,-800.42115418,0.00033421,7]
[422400457,1778935876000,-788.21433041,0.00033421,7]
[422400456,1778935876000,-860.49594318,0.00033421,7]
[422400462,1778935876000,-903.923987,0.00033421,7]
[422400458,1778935876000,-782.64582707,0.00033421,7]
[422400463,1778935876000,-818.70184761,0.00033421,7]
[422400460,1778935876000,-792.97813116,0.00033421,7]
[422400459,1778935876000,-853.39905429,0.00033421,7]
[422400465,1778935876000,-1019.50958105,0.00033421,2]
[422400476,1778935876000,-2481.11217867,0.00033421,7]
[422400468,1778935876000,-973.59475148,0.00033421,7]
[422400440,1778935876000,-983.0,0.00033259,30]
[422400470,1778935876000,-798.24587991,0.00033421,7]
[422400464,1778935876000,-857.62265627,0.00033421,7]
[422400432,1778935876000,-160.0,0.000332,16]
[422400419,1778935876000,-2221.37,0.00033,30]
[422400431,1778935876000,-160.0,0.000332,16]
[422400467,1778935876000,-898.5105626,0.00033421,7]
[422400411,1778935876000,-221.6985354,0.00033,120]
[422400412,1778935876000,-223.86422804,0.00033,120]
[422400413,1778935876000,-182.90570145,0.00033,120]
[422400409,1778935876000,-199.9448596,0.00033,120]
[422400410,1778935876000,-1799.22046513,0.00033,120]
[422400414,1778935876000,-1296.58145655,0.00033,120]
[422400416,1778935876000,-613.63117218,0.00033,120]
[422400421,1778935876000,-185.3550075,0.00033,120]
[422400426,1778935876000,-350.0,0.00033014,5]
[422400422,1778935876000,-150.0,0.00033,120]
[422400418,1778935876000,-303.82140309,0.00033,120]
[422400425,1778935876000,-180.48,0.00033013,60]
[422400433,1778935876000,-160.0,0.000332,16]
[422400417,1778935876000,-1256.55167276,0.00033,120]
[422400424,1778935876000,-831.0,0.00033011,8]
[422400415,1778935876000,-180.8822545,0.00033,120]
[422400420,1778935876000,-159.9602041,0.00033,7]
[422400437,1778935876000,-724.0,0.00033259,30]
[422400438,1778935876000,-2452.0,0.00033259,30]
[422400436,1778935876000,-152.0,0.00033236,36]
[422400439,1778935876000,-3684.0,0.00033259,30]
[422400427,1778935876000,-6652.05,0.00033057,14]
[422400428,1778935876000,-2249.0246,0.000331,20]
[422400429,1778935876000,-302.0,0.00033186,120]
[422400434,1778935876000,-160.0,0.000332,16]
[422400430,1778935876000,-40416.0,0.00033192,30]
[422400435,1778935876000,-160.0,0.000332,16]
[422400423,1778935876000,-571.588399,0.00033,14]
[422400466,1778935876000,-758.33762387,0.00033421,7]
[422400453,1778935876000,-902.34359811,0.00033421,7]
[422400471,1778935876000,-844.28639298,0.00033421,7]
[422400512,1778935876000,-201.0,0.00033869,2]
[422400508,1778935876000,-202.0,0.00033869,2]
[422400507,1778935876000,-191.35528457,0.00033866,5]
[422400502,1778935876000,-40416.0,0.00033768,30]
[422400509,1778935876000,-200.0,0.00033869,2]
[422400504,1778935876000,-52455.0,0.00033864,30]
[422400511,1778935876000,-200.0,0.00033869,2]
[422400503,1778935876000,-916.96,0.00033835,30]
[422400510,1778935876000,-200.0,0.00033869,2]
[422400505,1778935876000,-14770.0,0.00033864,30]
[422400516,1778935876000,-221.6985354,0.000339,120]
[422400519,1778935876000,-180.8822545,0.000339,120]
[422400518,1778935876000,-1296.58145655,0.000339,120]
[422400506,1778935876000,-152.0,0.00033866,38]
[422400514,1778935876000,-199.9448596,0.000339,120]
[422400515,1778935876000,-1799.22046513,0.000339,120]
[422400521,1778935876000,-1256.55167276,0.000339,120]
[422400524,1778935876000,-500.0,0.00033922,27]
[422400523,1778935876000,-185.3550075,0.000339,120]
[422400522,1778935876000,-303.82140309,0.000339,120]
[422400525,1778935876000,-5000.0,0.00033925,2]
[422400527,1778935876000,-150.0,0.00033959,30]
[422400528,1778935876000,-229.14946802,0.00033959,30]
[422400529,1778935876000,-40416.0,0.0003396,30]
[422400526,1778935876000,-500.0,0.00033959,30]
[422400530,1778935876000,-350.0,0.00033973,5]
[422400532,1778935876000,-400.0,0.00034,10]
[422400469,1778935876000,-767.00195866,0.00033421,7]
[422400517,1778935876000,-182.90570145,0.000339,120]
[422400513,1778935876000,-726.12708633,0.000339,120]
[422400520,1778935876000,-613.63117218,0.000339,120]
[422400493,1778935876000,-1918.0,0.00033494,30]
[422400497,1778935876000,-40416.0,0.00033576,30]
[422400472,1778935876000,-1998.70567055,0.00033421,7]
[422400473,1778935876000,-1036.68368934,0.00033421,7]
[422400474,1778935876000,-1010.82293814,0.00033421,7]
[422400475,1778935876000,-1566.17127014,0.00033421,7]
[422400488,1778935876000,-249.0,0.00033488,30]
[422400477,1778935876000,-1073.68629352,0.00033421,7]
[422400489,1778935876000,-2501.0,0.00033494,30]
[422400479,1778935876000,-2488.40081438,0.00033421,7]
[422400482,1778935876000,-798.80179036,0.00033421,7]
[422400480,1778935876000,-811.10315348,0.00033421,7]
[422400531,1778935876000,-6006.0,0.00034,5]
[422400481,1778935876000,-890.50986957,0.00033421,7]
[422400486,1778935876000,-500.0,0.00033479,120]
[422400478,1778935876000,-947.2500008,0.00033421,7]
[422400487,1778935876000,-1044.0,0.00033488,30]
[422400499,1778935876000,-431.3573,0.000336,20]